Cogmind - Beta 12 @@@ ROGUE MODE // 2023.11.22 @ 01:52:01 Player: DreamAR Result: Destroyed by G-47 Trooper with Particle Gun Performance ------------- Evolutions (2) 1000 Regions Visited (9) 1800 Robots Destroyed (157) 785 Value Destroyed (5778) 5778 Prototype IDs (33) 660 Alien Tech Used (0) 0 Bonus (2188) 2188 TOTAL SCORE: 12211 Bonus ------- High Alert Combat Kills 791 Follower Combat Kills 452 Entered Garrisons 200 Used RIF Installer 500 Aligned with FarCom 300 Friendly Fire -55 Cogmind --------- Core Integrity 0/550 Matter 196/300 Energy 80/160 System Corruption 14% Temperature Warm (173) Movement Rolling (135) Ox3 Location -8/Materials Parts ------- > --- POWER (1) -------- Light Nuclear Core > --- PROPULSION (2) --- Wheel Compact Wheel > --- UTILITY (6) ------ Huge Storage Unit Advanced Targeting Computer System Shield Relay Coupler [Swarmer] (15) Relay Coupler [Grunt] (1) Relay Coupler [Sentry] (31) > --- WEAPON (2) ------- Guided Plasma Cannon Remote Datajack > --- INVENTORY (25) --- Improved Deuterium Engine Light Treads Light Treads Improved Heat Sink Relay Coupler [Swarmer] (40) Relay Coupler [Swarmer] (38) Relay Coupler [Swarmer] (52) Relay Coupler [Brawler] (40) Relay Coupler [Duelist] (31) Relay Coupler [Duelist] (41) Relay Coupler [Duelist] (34) Relay Coupler [Sentry] (24) Relay Coupler [Sentry] (21) Relay Coupler [Hunter] (17) Relay Coupler [Hunter] (22) Relay Coupler [Hunter] (20) Relay Coupler [Hunter] (12) Relay Coupler [Heavy] (18) Relay Coupler [Behemoth] (11) Recalibrator Heavy Particle Gun Advanced Assault Cannon Mini Grenade Launcher Heavy Flail Peak State ------------ > --- POWER ------------ Micro Nuclear Core > --- PROPULSION ------- VSS Leg VSS Leg > --- UTILITY ---------- Improved Heat Sink Advanced Heat Sink Huge Storage Unit Improved Terrain Scan Processor Advanced Targeting Computer System Shield > --- WEAPON ----------- Guided Plasma Cannon Heavy Flail > --- INVENTORY -------- Nuclear Core Light Nuclear Core Improved Heat Sink Relay Coupler [NC] Relay Coupler [Swarmer] Relay Coupler [Swarmer] Relay Coupler [Swarmer] Relay Coupler [Grunt] Relay Coupler [Duelist] Relay Coupler [Duelist] Relay Coupler [Duelist] Relay Coupler [Sentry] Relay Coupler [Sentry] Relay Coupler [Heavy] Recalibrator Heavy Particle Gun Advanced Assault Cannon Advanced Assault Cannon Advanced Assault Cannon Advanced Assault Cannon Mini Grenade Launcher Mini Grenade Launcher Remote Datajack Remote Datajack Katana [Rating: 47] Favorites ----------- Power Cooled Ion Engine Engine Cooled Ion Engine Power Core Light Nuclear Core Propulsion Titanium Leg Treads Light Treads Leg Titanium Leg Wheel Compact Wheel Hover Unit Gravmag System Flight Unit Improved Flight Unit Utility Huge Storage Unit Device Improved Heat Sink Storage Huge Storage Unit Processor Advanced Targeting Computer Hackware System Shield Protection Hardened Light Armor Plating Weapon Mini Grenade Launcher Energy Gun Beamcaster Energy Cannon Guided Plasma Cannon Ballistic Gun Heavy Assault Rifle Ballistic Cannon Advanced Assault Cannon Launcher Mini Grenade Launcher Special Weapon Remote Datajack Impact Weapon Heavy Flail Slashing Weapon Katana Build | -11 -10 -10 -9 -9 -9 -8 -8 -8 -8 ------- Run | Jun Mat Min Mat Min Exi Min Mat Gar Mat Slots Evolved 4 | . . . 2 . . . 2 . . Power . | . . . . . . . . . . Propulsion . | . . . . . . . . . . Utility 4 | . . . 2 . . . 2 . . Weapon . | . . . . . . . . . . Parts Attached 213 | 9 12 11 52 18 2 10 46 45 8 Power 19 | 1 3 2 2 1 . 1 5 2 2 Engine 15 | 1 3 2 2 . . 1 5 1 . Core 4 | . . . . 1 . . . 1 2 Reactor . | . . . . . . . . . . Propulsion 41 | 4 2 4 10 3 . . 5 11 2 Treads 4 | 2 . . . . . . . 2 . Leg 16 | 2 2 . . 2 . . 2 8 . Wheel 17 | . . 2 9 1 . . 3 . 2 Hover 3 | . . 2 . . . . . 1 . Flight 1 | . . . 1 . . . . . . Utility 60 | 2 2 1 13 2 . 5 16 18 1 Device 33 | 1 1 . 9 1 . 4 8 9 . Storage 6 | 1 . 1 2 . . . 1 1 . Processor 7 | . 1 . 2 . . . 3 1 . Hackware 8 | . . . . . . . . 7 1 Protection 6 | . . . . 1 . 1 4 . . Artifact . | . . . . . . . . . . Weapon 93 | 2 5 4 27 12 2 4 20 14 3 Energy Gun 15 | 1 . . 5 3 1 1 2 2 . Energy Cannon 12 | . 2 . 6 1 . . . 2 1 Ballistic Gun 8 | 1 2 1 . 1 . . 3 . . Ballistic Cannon 10 | . 1 . . 1 . . 8 . . Launcher 21 | . . 2 7 1 1 2 3 4 1 Special Weapon 6 | . . . . 1 . 1 . 3 1 Impact Weapon 18 | . . 1 9 4 . . 1 3 . Slashing Weapon 3 | . . . . . . . 3 . . Piercing Weapon . | . . . . . . . . . . Special Melee Weapon . | . . . . . . . . . . Unidentified Prototypes 8 | . . . 4 . . . 4 . . Parts Lost 25 | . 1 1 1 2 . . 4 15 1 Power 4 | . . 1 . . . . 1 1 1 Propulsion 10 | . . . 1 2 . . . 7 . Utility 9 | . 1 . . . . . 3 5 . Weapon 2 | . . . . . . . . 2 . Highest Loss Streak 5 | . 1 1 1 2 . . 2 5 1 To Critical Strikes . | . . . . . . . . . . Average Slot Usage (%) 97 | . 99 99 98 99 77 100 99 94 98 Engine 6 | . 14 14 11 2 . 1 9 5 4 Core 3 | . . . . 8 11 9 . 3 4 Leg 13 | . 28 5 . 9 22 22 14 13 . Wheel 5 | . . 19 21 12 . . 3 . 6 Device 15 | . 9 . 12 10 11 11 31 18 3 Storage 9 | . 14 14 11 11 11 11 9 6 9 Processor 12 | . 4 14 19 22 22 11 7 11 9 Hackware 5 | . . . . . . . . 13 32 Protection 2 | . . . . . . 10 6 . . Energy Gun 3 | . 1 . 2 8 . 9 2 3 . Energy Cannon 2 | . 8 . 4 1 . . . 2 1 Ballistic Gun 3 | . 11 17 2 1 . . 5 . . Ballistic Cannon 2 | . 6 . . 2 . . 8 . . Launcher 4 | . . 9 7 4 . 12 . 3 1 Special Weapon 1 | . . . . . . . . 2 7 Impact Weapon 2 | . . 1 4 2 . . . 4 7 Naked Turns . | . . . . . . . . . . Heaviest Build 112 | 13 20 92 98 98 92 99 112 111 98 Greatest Support 40 | 40 20 32 32 34 34 34 40 40 40 Greatest Overweight (x) 27 | 2 . 2 7 3 2 2 3 27 5 Average Overweight (x) 1 | . . 1 2 2 2 2 2 2 3 Largest Inventory Capacity 25 | 8 8 25 25 25 25 25 25 25 25 Average Capacity 21 | 7 8 19 25 25 25 25 25 20 25 Most Carried 25 | 8 8 17 25 25 24 24 25 25 25 Average Carried 19 | 4 7 12 22 22 23 22 22 18 24 Final Capacity 25 | 8 8 25 25 25 25 25 25 25 25 Final Carried 24 | 8 8 17 24 21 22 24 22 24 24 Class Distribution -------------------- 53% | Mutant 24% | Scavenger-Mutant 19% | Bothacker-Mutant Dominant Class ---------------- Mutant | -10/Materials Mutant | -10/Mines Mutant | -9/Materials Scavenger-Mutant | -9/Mines Mutant | -9/Exiles Scavenger-Mutant | -8/Mines Mutant | -8/Materials Bothacker-Mutant | -8/Garrison Bothacker-Mutant | -8/Materials Resources | -11 -10 -10 -9 -9 -9 -8 -8 -8 -8 ----------- Run | Jun Mat Min Mat Min Exi Min Mat Gar Mat Matter Collected 4721 | 314 287 312 610 538 . 398 874 1078 310 Remotely . | . . . . . . . . . . Salvage Created 4744 | 95 541 227 1264 81 . 260 1225 800 251 Parts 258 | 8 31 13 67 3 . 11 76 41 8 Haulers Intercepted 9 | . 2 . 3 . . . 3 . 1 Recyclers Shooed 5 | . . . . . . 2 3 . . Parts Field Recycled . | . . . . . . . . . . Retrieved Matter . | . . . . . . . . . . Parts Self-Destructed . | . . . . . . . . . . Prevented . | . . . . . . . . . . Kills | -11 -10 -10 -9 -9 -9 -8 -8 -8 -8 ------- Run | Jun Mat Min Mat Min Exi Min Mat Gar Mat Combat Hostiles Destroyed 119 | . 15 12 25 4 . 9 24 29 1 Melee 8 | . . . 4 . . . . 4 . Guns 29 | . 2 8 1 . . 4 8 6 . Cannons 28 | . 8 . 1 3 . . 15 1 . AOE 51 | . 5 4 17 . . 5 1 18 1 Classes Destroyed 15 | 2 4 3 3 1 . . . 2 . Worker 10 | . . 1 3 . . . 2 . 4 Builder 3 | . . . . 1 . 1 . . 1 Tunneler 3 | 2 . . . 1 . . . . . Hauler 9 | . 2 . 3 . . . 3 . 1 Recycler 14 | 1 . 2 5 . . . 4 . 2 Operator 1 | . . . 1 . . . . . . Watcher 8 | . 3 . 3 . . . 2 . . Swarmer 25 | . 5 3 3 . . 3 4 7 . Grunt 62 | . 10 . 16 2 . 4 15 14 1 Brawler 4 | . . . 1 . . 2 1 . . Sentry 11 | . . . 5 . . . 4 2 . Demolisher 1 | . . 1 . . . . . . . Specialist 2 | . . . . . . . . 2 . Programmer 4 | . . . . . . . . 4 . Assembled 10 | . . 8 . 2 . . . . . Best Kill Streak 9 | 2 6 5 5 2 . 3 5 9 4 Combat Bots Only 9 | . 5 5 4 2 . 3 4 9 1 Max Kills in Single Turn 6 | 1 6 3 3 1 . 2 4 4 2 Gunslinging 1 | . . . . . . 1 1 . . Exploded 5 | . 5 2 2 . . 2 1 4 1 Melee 1 | . . . 1 . . . . 1 . Uniques/NPCs Destroyed . | . . . . . . . . . . Combat | -11 -10 -10 -9 -9 -9 -8 -8 -8 -8 -------- Run | Jun Mat Min Mat Min Exi Min Mat Gar Mat Damage Taken 5876 | . 416 767 675 667 . 179 935 2052 185 Core 1067 | . 59 139 164 110 . 31 58 471 35 Absorbed by Shields 301 | . . . . . . 6 295 . . Regen/Repaired (Parts) 224 | . . . 192 . . . . . 32 Core Remaining (%) 47 | 100 . 20 . . . 23 . . . Volleys Fired 284 | 8 47 30 42 16 . 9 79 40 13 Largest 2 | 2 2 2 2 2 . 2 2 2 1 Hottest 175 | 60 95 53 105 148 . 175 96 155 120 Shots Fired 514 | 16 94 43 78 29 . 17 158 66 13 Gun 190 | 16 26 36 20 9 . 7 40 36 . Cannon 220 | . 68 . 19 16 . . 114 1 2 Launcher 86 | . . 7 39 1 . 8 4 22 5 Special 18 | . . . . 3 . 2 . 7 6 Kinetic 254 | 8 51 36 10 15 . . 134 . . Thermal 127 | . 34 . 19 6 . 9 20 37 2 Explosive 86 | . . 7 39 1 . 8 4 22 5 Electromagnetic 34 | 8 9 . 10 7 . . . . . Robot Hit Streak 16 | 4 10 7 14 7 . 6 14 16 5 Robot Miss Streak 6 | 2 3 6 4 3 . 2 4 2 2 Penetration Max . | . . . . . . . . . . Secondary Targets 4 | . . . . . . 1 3 . . Max Gunslinging Chain 1 | . . . . . . 1 1 . . Shots Hit Robots 327 | 10 44 19 51 24 . 8 102 54 15 Core Hits 232 | 4 24 21 52 8 . 16 50 46 11 Critical Kills 3 | . 1 . 1 . . . . 1 . Critical Parts Destroyed 11 | . . . 3 1 . . . 7 . Critical Strikes 19 | . 1 . 4 4 . . 2 8 . Burn 2 | . . . . 2 . . . . . Destroy 1 | . 1 . . . . . . . . Blast 3 | . . . . 1 . . 2 . . Smash 13 | . . . 4 1 . . . 8 . Melee Attacks 96 | . . 5 19 18 . . 2 45 7 Impact 89 | . . 5 19 18 . . . 40 7 Slashing 7 | . . . . . . . 2 5 . Piercing . | . . . . . . . . . . Sneak Attacks 6 | . . . . . . . . 1 5 Combat Hostiles . | . . . . . . . . . . Follow-up Attacks 5 | . . . 3 . . . . 2 . Damage Inflicted 13317 | 141 1476 685 2807 692 . 550 2918 3107 941 Guns 2075 | 141 169 304 235 99 . 96 489 542 . Cannons 3182 | . 564 . 205 227 . . 2079 42 65 Explosions 5720 | . 740 380 1936 37 . 427 350 1433 417 Melee 2271 | . . . 431 291 . . . 1090 459 Ramming 4 | . 3 1 . . . . . . . Kinetic 3342 | 46 359 304 85 227 . . 2321 . . Thermal 2073 | . 709 . 307 38 . 123 247 584 65 Explosive 5170 | . 292 380 1834 37 . 427 350 1433 417 Electromagnetic 457 | 95 113 . 150 99 . . . . . Impact 2212 | . . . 431 291 . . . 1031 459 Slashing 59 | . . . . . . . . 59 . Piercing . | . . . . . . . . . . Highest Corruption 14 | . 1 1 3 3 3 3 2 14 14 Average Corruption 6 | . 1 1 3 3 3 3 2 10 14 Corruption Purged . | . . . . . . . . . . Corruption Blocked . | . . . . . . . . . . Effects 325 | . 1 19 14 25 12 26 9 202 17 Message Errors 101 | . . 4 5 9 3 7 5 64 4 Matter Fused 84 | . . 4 4 6 3 7 4 53 3 Heat Flow Errors 34 | . . 5 1 2 1 2 . 20 3 Energy Discharges 44 | . 1 1 . 1 2 6 . 28 5 Parts Rejected 2 | . . . 1 . . . . 1 . Parts Fused 3 | . . . . . . . . 3 . Data Loss (minor) 35 | . . 1 1 2 2 2 . 25 2 Data Loss (major) 10 | . . 2 1 2 1 . . 4 . Misfires 7 | . . . 1 2 . 1 . 3 . Alerts 1 | . . . . 1 . . . . . Weapon Failures 4 | . . 2 . . . 1 . 1 . Overload Shots . | . . . . . . . . . . Overflow Damage 1159 | . 43 12 229 124 . 1 55 505 190 Projectiles 62 | . . . . 15 . . 47 . . Explosions 163 | . 43 12 89 . . 1 8 9 1 Melee 934 | . . . 140 109 . . . 496 189 Knockbacks 33 | . 2 . 3 . . . 18 7 3 Impact 13 | . . . 3 . . . . 7 3 Kinetic 19 | . 2 . . . . . 17 . . Secondary 1 | . . . . . . . 1 . . Self-Inflicted Damage 287 | . . 23 124 46 . 37 . 57 . Shots 13 | . . 1 4 1 . 2 . 5 . Rammed . | . . . . . . . . . . Targets Rammed 3 | . 2 1 . . . . . . . Kicked 3 | . 2 1 . . . . . . . Crushed . | . . . . . . . . . . Highest Temperature 344 | . 249 258 147 335 116 285 344 260 250 Average Temperature 89 | . 74 120 46 140 66 116 72 94 108 Received Heat Transfer 1459 | . 123 20 258 204 . 60 470 279 45 Effects 6 | . . . . 3 . . . 3 . Energy Bleed 1 | . . . . 1 . . . . . Interference 5 | . . . . 2 . . . 3 . Siege Activations . | . . . . . . . . . . Robots Corrupted . | . . . . . . . . . . Combat Hostiles . | . . . . . . . . . . Parts Fried 11 | . . . 3 . . . . . 8 Impact Corruptions 36 | . . . 5 4 . . . 17 10 Robots Melted . | . . . . . . . . . . Combat Hostiles . | . . . . . . . . . . Parts Melted 10 | . 2 . . . . 3 . 5 . Heat Transferred 3714 | . 805 . 483 560 . 333 481 912 140 Parts Sabotaged . | . . . . . . . . . . Parts Stolen . | . . . . . . . . . . Parts Stripped . | . . . . . . . . . . Power Chain Reactions 1 | . . . 1 . . . . . . Missiles Intercepted . | . . . . . . . . . . Alert | -11 -10 -10 -9 -9 -9 -8 -8 -8 -8 ------- Run | Jun Mat Min Mat Min Exi Min Mat Gar Mat Peak Influence 4340 | 15 370 139 435 233 . 153 555 4340 2212 Initial 2115 | . 9 . . 162 . . 5 362 2115 Average 901 | 4 110 22 238 73 . 39 168 2247 2117 Maximum Alert Level 5 | . 1 . 2 1 . . 2 5 5 Low Security (%) 47 | 100 86 100 39 91 . 100 53 . . Level 1 12 | . 13 . 41 8 . . 36 2 . Level 2 6 | . . . 19 . . . 9 7 . Level 3 3 | . . . . . . . . 10 . Level 4 5 | . . . . . . . . 17 . Level 5 23 | . . . . . . . . 60 100 High Security . | . . . . . . . . . . Max Security . | . . . . . . . . . . Squads Dispatched 16 | . 3 . 5 1 . . 5 . 2 Investigation 7 | . 2 . 2 1 . . 1 . 1 Extermination . | . . . . . . . . . . Reinforcement 5 | . 1 . 3 . . . 1 . . Assault 1 | . . . . . . . . . 1 Garrison 3 | . . . . . . . 3 . . Intercept . | . . . . . . . . . . Searches Triggered . | . . . . . . . . . . Construction Impeded . | . . . . . . . . . . Haulers Reinforced . | . . . . . . . . . . Active Scanning Responses . | . . . . . . . . . . Cargo Convoy Interrupts . | . . . . . . . . . . Stealth | -11 -10 -10 -9 -9 -9 -8 -8 -8 -8 --------- Run | Jun Mat Min Mat Min Exi Min Mat Gar Mat Distress Signals 5 | . 1 . 2 . . . 2 . . Communications Jammed . | . . . . . . . . . . Distress Signals . | . . . . . . . . . . Times Spotted 174 | . 15 23 39 12 . 10 29 35 11 Peak Tracking Total 6 | . 4 5 5 4 . 4 5 6 5 Tactical Retreats 18 | . 1 5 2 5 . . 1 3 1 Traps | -11 -10 -10 -9 -9 -9 -8 -8 -8 -8 ------- Run | Jun Mat Min Mat Min Exi Min Mat Gar Mat Traps Triggered 9 | . 2 . 1 . . . . 5 1 Indirectly . | . . . . . . . . . . Trap Hack Attempts . | . . . . . . . . . . Triggered . | . . . . . . . . . . Disarmed . | . . . . . . . . . . Reprogrammed . | . . . . . . . . . . Reused 3 | . . . . . . . . 3 . Traps Extracted . | . . . . . . . . . . Installed 9 | . . . . . . . . 9 . Triggered 3 | . . . . . . . . 3 . Most Traps Carried 5 | . . . . . . . . 5 . Exploded 1 | . . . . . 1 . . . . Machines | -11 -10 -10 -9 -9 -9 -8 -8 -8 -8 ---------- Run | Jun Mat Min Mat Min Exi Min Mat Gar Mat Machines Disabled 26 | . 3 . 5 . . . 6 12 . Max in Single Turn 3 | . 3 . 1 . . . 3 1 . Garrison Relay 8 | . . . . . . . . 8 . Machines Repaired . | . . . . . . . . . . Machines Sabotaged . | . . . . . . . . . . Overloaded Fab Kills . | . . . . . . . . . . Hacking | -11 -10 -10 -9 -9 -9 -8 -8 -8 -8 --------- Run | Jun Mat Min Mat Min Exi Min Mat Gar Mat Machines Accessed 37 | . 8 1 12 1 2 . 7 3 3 Terminals 26 | . 7 1 8 . . . 5 3 2 Fabricators . | . . . . . . . . . . Repair Stations 3 | . . . 2 . . . . . 1 Recycling Units 2 | . 1 . 1 . . . . . . Scanalyzers 2 | . . . 1 . . . 1 . . Garrison Access 1 | . . . . . . . 1 . . Total Hacks 110 | . 23 2 50 1 2 . 15 6 11 Successful 63 | . 12 1 32 1 2 . 7 3 5 Failed 47 | . 11 1 18 . . . 8 3 6 Catastrophic 8 | . 4 . 2 . . . 2 . . Database Lockouts . | . . . . . . . . . . Manual 51 | . 15 2 22 . 1 . 8 . 3 Terminals 73 | . 19 2 30 . . . 10 6 6 Fabricators . | . . . . . . . . . . Repair Stations 20 | . . . 15 . . . . . 5 Recycling Units 7 | . 4 . 3 . . . . . . Scanalyzers 6 | . . . 2 . . . 4 . . Garrison Access 1 | . . . . . . . 1 . . Terminal Hacks 26 | . 7 . 10 1 2 . 1 3 2 Record 1 | . . . . . 1 . . . . Part Schematic 1 | . . . . . . . . . 1 Robot Analysis 5 | . 1 . 2 . . . 1 . 1 Prototype ID Bank 1 | . 1 . . . . . . . . Open Door 2 | . . . . 1 . . . 1 . Branch Access Points 2 | . . . 2 . . . . . . Emergency Access Points 1 | . . . . . . . . 1 . Alert Level 4 | . 1 . 3 . . . . . . Unreport Threat 4 | . 2 . 2 . . . . . . Locate Traps 1 | . 1 . . . . . . . . Zone Layout 2 | . 1 . 1 . . . . . . Security Stations 1 | . . . . . . . . 1 . EX-Prototype ID Bank 1 | . . . . . 1 . . . . Fabricator Hacks . | . . . . . . . . . . Repair Station Hacks 17 | . . . 14 . . . . . 3 Scan Component 10 | . . . 8 . . . . . 2 Repair 7 | . . . 6 . . . . . 1 Recycling Unit Hacks 1 | . . . 1 . . . . . . Report Inventory 1 | . . . 1 . . . . . . Scanalyzer 4 | . . . 1 . . . 3 . . Insert Component 3 | . . . 1 . . . 2 . . Analyze 1 | . . . . . . . 1 . . Garrison Access Hacks 1 | . . . . . . . 1 . . Unlock Access 1 | . . . . . . . 1 . . Unauthorized Hacks 14 | . 5 1 6 . . . 2 . . Terminals 10 | . 3 1 4 . . . 2 . . Botnet 9 | . 2 1 4 . . . 2 . . Detonate 1 | . 1 . . . . . . . . Fabricators . | . . . . . . . . . . Repair Stations . | . . . . . . . . . . Recycling Units 4 | . 2 . 2 . . . . . . Recyclers 2 | . 1 . 1 . . . . . . Tunnel 2 | . 1 . 1 . . . . . . Scanalyzers . | . . . . . . . . . . Garrison Access . | . . . . . . . . . . Data Cores Recovered . | . . . . . . . . . . Used . | . . . . . . . . . . Hacking Detections 27 | . 7 1 10 . . . 6 1 2 Full Trace Events 3 | . 2 . . . . . 1 . . Feedback Events . | . . . . . . . . . . Feedback Blocked . | . . . . . . . . . . Robot Schematics Acquired . | . . . . . . . . . . Robots Built . | . . . . . . . . . . Authchips . | . . . . . . . . . . Time . | . . . . . . . . . . Total Robot Build Rating . | . . . . . . . . . . Part Schematics Acquired 2 | . . . . . . . 1 . 1 Parts Built . | . . . . . . . . . . Authchips . | . . . . . . . . . . Time . | . . . . . . . . . . Total Part Build Rating . | . . . . . . . . . . Parts Repaired 7 | . . . 6 . . . . . 1 Time 363 | . . . 302 . . . . . 61 Parts Recycled . | . . . . . . . . . . Recycled Matter . | . . . . . . . . . . Retrieved Matter . | . . . . . . . . . . Retrieved Components . | . . . . . . . . . . Parts Scanalyzed 3 | . . . 1 . . . 2 . . Part Schematics Acquired 1 | . . . . . . . 1 . . Parts Damaged . | . . . . . . . . . . Bothacking | -11 -10 -10 -9 -9 -9 -8 -8 -8 -8 ------------ Run | Jun Mat Min Mat Min Exi Min Mat Gar Mat Used RIF Installer 1 | . . . . . . . . 1 . Robots Hacked 6 | . . . . . . . . 3 3 Non-combat . | . . . . . . . . . . Combat 6 | . . . . . . . . 3 3 Robot Hacks Applied 6 | . . . . . . . . 3 3 find_garrison 1 | . . . . . . . . . 1 formatsys_high 5 | . . . . . . . . 3 2 Relay Couplers Released 32 | . . . . . . . . 32 . Machine Destruction 32 | . . . . . . . . 32 . Attached 7 | . . . . . . . . 6 1 Fabnet Peak Effective % . | . . . . . . . . . . Robots Rewired . | . . . . . . . . . . Allies Hacked . | . . . . . . . . . . Hacks Repelled . | . . . . . . . . . . Allies | -11 -10 -10 -9 -9 -9 -8 -8 -8 -8 -------- Run | Jun Mat Min Mat Min Exi Min Mat Gar Mat Total Allies 13 | . . . . 6 . . . 5 2 Largest Group 3 | . . . . 3 3 3 . 3 2 Highest-Rated Group 62 | . . . . 62 40 40 . 56 16 Highest-Rated Ally 31 | . . . . 31 16 16 . 31 16 Total Orders . | . . . . . . . . . . Ally Attacks 90 | . . . . 24 . 13 . 29 24 Total Damage 1003 | . . . . 232 . 98 . 531 142 Kills 14 | . . . . 4 . 1 . 7 2 Allies Corrupted . | . . . . . . . . . . Allies Melted . | . . . . . . . . . . Intel | -11 -10 -10 -9 -9 -9 -8 -8 -8 -8 ------- Run | Jun Mat Min Mat Min Exi Min Mat Gar Mat Robot Analysis Total 5 | . 1 . 2 . . . 1 . 1 Derelict Logs Recovered 3 | . . 2 . 1 . . . . . Drone Launches . | . . . . . . . . . . Drone Recoveries . | . . . . . . . . . . Exploration | -11 -10 -10 -9 -9 -9 -8 -8 -8 -8 ------------- Run | Jun Mat Min Mat Min Exi Min Mat Gar Mat Turns Passed 17476 | 142 1202 1470 1576 1568 690 1816 2789 5767 456 Spaces Moved 7449 | 76 778 954 743 746 255 656 993 2082 166 Core 18 | 13 . . . . . . . 5 . Treads 123 | 16 . . . . . . . 68 39 Legs 4721 | 47 778 215 . 234 255 656 745 1791 . Wheels 2493 | . . 649 743 512 . . 248 214 127 Hover 94 | . . 90 . . . . . 4 . Flight . | . . . . . . . . . . Fastest Speed 50 | 50 120 77 130 140 270 270 130 90 135 Average Speed 202 | 126 120 122 136 180 270 270 238 257 196 Slowest Speed 1400 | 160 120 190 195 270 270 270 270 1400 320 Overloaded Moves . | . . . . . . . . . . Propulsion Burnouts . | . . . . . . . . . . Robots Hopped . | . . . . . . . . . . Cave-ins Triggered . | . . . . . . . . . . Exploration Rate (%) 70 | 5 95 100 70 99 63 99 57 97 16 Regions Visited 9 Branch Regions 4 Pre-discovered Areas 4 | . 1 1 1 . 1 . . . . Known Exits Taken 5 | . . . 1 1 1 1 1 . . Unknown Exits Taken 3 | 1 1 1 . . . . . . . Scrap Searched 4 | . . 1 . 2 . 1 . . . Spaces Dug 34 | . . . 4 3 . 15 2 10 . Terrain Destroyed 615 | . 22 53 201 20 . 88 103 96 32 Melee 11 | . . . 4 3 . . 2 2 . Projectile 31 | . . . 5 4 . . 22 . . AOE 573 | . 22 53 192 13 . 88 79 94 32 Terrain Rammed . | . . . . . . . . . . Walls Destroyed . | . . . . . . . . . . Machines Disabled . | . . . . . . . . . . Actions | -11 -10 -10 -9 -9 -9 -8 -8 -8 -8 --------- Run | Jun Mat Min Mat Min Exi Min Mat Gar Mat Total 9247 | 101 961 1197 1186 910 259 681 1293 2386 273 Wait 822 | . 86 178 284 76 . 1 98 24 75 Move 7441 | 75 777 953 742 745 254 655 993 2081 166 Hop . | . . . . . . . . . . Pick Up 201 | 9 16 13 32 18 1 4 37 69 2 Fast Attach 36 | 6 3 3 2 . . . 2 18 2 Attach 41 | 1 1 1 5 4 2 1 11 14 1 Detach 2 | . . . . . 2 . . . . Swap 136 | 2 8 7 45 14 . 9 33 13 5 Drop 163 | . 21 6 18 19 . 2 38 57 2 Fire 284 | 8 47 30 42 16 . 9 79 40 13 Melee 88 | . . 5 16 18 . . 2 40 7 Ram . | . . . . . . . . . . Kick 3 | . 2 1 . . . . . . . Crush . | . . . . . . . . . . Escape Stasis 15 | . . . . . . . . 15 . Rewire 6 | . . . . . . . . 6 . Trap 9 | . . . . . . . . 9 . Miscellaneous . | . . . . . . . . . . Route ------- -11/Junkyard -10/Materials (discovered 4 exits: *Mat x3 / *Min) -10/Mines (discovered 2 exits: *Mat x2) -9/Materials (discovered 3 exits: *Mat x2 / *Min) -9/Mines (discovered 3 exits: *Mat x2 / *Exi) -9/Exiles (discovered 2 exits: *Min x2) -8/Mines (discovered 2 exits: *Mat x2) -8/Materials (discovered 2 exits: *Sto / Gar) -8/Garrison (discovered 3 exits: *Mat x3) -8/Materials History --------- Turn | Location | Event 17 | -11/Junkyard | Discovered new exit (range 16) 143 | -11/Junkyard | Entered Materials 310 | -10/Materials | Build established: Mutant 588 | -10/Materials | Discovered new exit (range 8) 1075 | -10/Materials | Discovered new exit (range 5) 1224 | -10/Materials | Discovered new exit (range 7) 1239 | -10/Materials | Discovered new exit (range 17) 1345 | -10/Materials | Entered Mines 1367 | -10/Mines | Discovered new exit (range 8) 1436 | -10/Mines | Learned location of Storage (-8) 1569 | -10/Mines | Discovered new exit (range 8) 1576 | -10/Mines | Assembled infested the area 1748 | -10/Mines | Core integrity fell below 50% 2217 | -10/Mines | Found a damaged Exp. Sensor Array with a note attached 2220 | -10/Mines | Found Prototype Device 2290 | -10/Mines | Learned Materials stockpile data 2382 | -10/Mines | Learned location of 1 exit from Materials 2815 | -10/Mines | Entered Materials 2815 | -9/Materials | Evolved 2 slots: Utility x2 2815 | -9/Materials | Identified Exp. Sensor Array 2816 | -9/Materials | Identified exit to Materials 2831 | -9/Materials | Identified exit to Mines 3455 | -9/Materials | Build established: Scavenger-Mutant 3482 | -9/Materials | Discovered exit to Materials (range 15) 3794 | -9/Materials | Build established: Mutant 3909 | -9/Materials | Repaired Broken Exp. Sensor Array 3951 | -9/Materials | Repaired Mni. Grenade Launcher 3984 | -9/Materials | Repaired Arm. Wheel 4252 | -9/Materials | Repaired Grenade Launcher 4298 | -9/Materials | Repaired Arm. Wheel 4344 | -9/Materials | Repaired Broken Mni. Grenade Launcher 4391 | -9/Materials | Entered Mines 4456 | -9/Mines | Met a Derelict bent on vengeance 4602 | -9/Mines | Received a Mining Laser from a helpful Derelict 4699 | -9/Mines | Discovered exit to Materials (range 16) 4845 | -9/Mines | Met a Derelict shopkeep closing up shop 5014 | -9/Mines | Discovered exit to Materials (range 12) 5080 | -9/Mines | A weapon hastily lodged in a ceiling crevice suddenly fell to the ground 5095 | -9/Mines | Deemed a non-threat by the Exiles lab entrance 5095 | -9/Mines | Discovered new exit (range 5) 5100 | -9/Mines | Identified exit to Exiles 5144 | -9/Mines | Excavation squad dispatched 5144 | -9/Mines | A large section of the Mines collapsed 5165 | -9/Mines | Core integrity fell below 50% 5609 | -9/Mines | Assisted by bots powering up and referring to "LRC-V3" 5612 | -9/Mines | Build established: Scavenger-Mutant 5959 | -9/Mines | Entered Exiles 5959 | -9/Exiles | Accompanied by 3 allies 6009 | -9/Exiles | Discovered new exit (range 15) 6036 | -9/Exiles | Met 8R-AWN 6079 | -9/Exiles | Met EX-HEX 6160 | -9/Exiles | Met EX-BIN 6190 | -9/Exiles | Met EX-DEC 6222 | -9/Exiles | Learned location of Zion (-6) 6266 | -9/Exiles | Build established: Mutant 6311 | -9/Exiles | Aligned with FarCom system 6314 | -9/Exiles | Given EX-Vault access code 6379 | -9/Exiles | Opened EX-Vault 6392 | -9/Exiles | Found Gui. Plasma Cannon 6450 | -9/Exiles | Warned to stay clear of 0b10 Research branches 6489 | -9/Exiles | Exiles lab attacked by MAIN.C 6618 | -9/Exiles | Discovered new exit (range 14) 6645 | -9/Exiles | Identified exit to Mines 6649 | -9/Exiles | Left Exiles lab with Gui. Plasma Cannon 6649 | -9/Exiles | Entered Mines 6649 | -8/Mines | Accompanied by 3 allies 6905 | -8/Mines | Discovered exit to Materials (range 6) 6945 | -8/Mines | Discovered exit to Materials (range 14) 6961 | -8/Mines | Build established: Scavenger-Mutant 8456 | -8/Mines | Build established: Mutant 8465 | -8/Mines | Entered Materials 8465 | -8/Materials | Evolved 2 slots: Utility x2 8466 | -8/Materials | Identified exit to Storage 10969 | -8/Materials | Garrison activated, responded to threat 11254 | -8/Materials | Identified exit to Garrison 11254 | -8/Materials | Entered Garrison 11368 | -8/Garrison | Triggered checkpoint 11643 | -8/Garrison | Garrison Relay disabled 11719 | -8/Garrison | Core integrity fell below 50% 11752 | -8/Garrison | Lost 3 parts (1n2u) 11871 | -8/Garrison | Garrison Relay disabled 11881 | -8/Garrison | Garrison Relay disabled 11882 | -8/Garrison | System corruption reached 10% 12524 | -8/Garrison | Triggered checkpoint 12536 | -8/Garrison | Destroyed 9 combat bots 12615 | -8/Garrison | Discovered new exit (range 12) 12772 | -8/Garrison | Triggered checkpoint 12780 | -8/Garrison | Learned Materials security intel 12787 | -8/Garrison | Build established: Scavenger-Mutant 12806 | -8/Garrison | Garrison Relay disabled 12833 | -8/Garrison | Discovered new exit (range 10) 12978 | -8/Garrison | Triggered checkpoint 13035 | -8/Garrison | Discovered new exit (range 15) 13113 | -8/Garrison | Garrison Relay disabled 13375 | -8/Garrison | Lost 5 parts (2n2u1w) 13556 | -8/Garrison | Triggered checkpoint 13565 | -8/Garrison | Installed Relay Interface Framework 13654 | -8/Garrison | Rescued a captive Derelict 13655 | -8/Garrison | Rescued a captive Derelict 14121 | -8/Garrison | Garrison Relay disabled 14259 | -8/Garrison | Build established: Bothacker-Mutant 15244 | -8/Garrison | Triggered checkpoint 15404 | -8/Garrison | Triggered checkpoint 16165 | -8/Garrison | Core integrity fell below 20% 16213 | -8/Garrison | Lost 5 parts (1p2n1u1w) 17021 | -8/Garrison | Entered Materials 17021 | -8/Materials | Accompanied by 1 ally 17144 | -8/Materials | Repaired Broken Remote Datajack 17421 | -8/Materials | First assault squad dispatched 17477 | -8/Materials | Destroyed by G-47 Trooper with Particle Gun Last Messages --------------- 17412_ U-05 Engineer builds a Wall. 17415_ U-05 Engineer builds a Door. 17417_ U-05 Engineer lays Concrete. 17419_ U-05 Engineer builds a Wall. 17419_ U-05 Engineer lays Concrete. 17420_ System corrupted: Energy discharge (-35). 17420_ U-05 Engineer lays Concrete. 17420_ U-05 Engineer builds a Wall. 17421_ ALERT: Significant disruption in Zone 6C, assault force dispatched. 17421_ U-05 Engineer lays Concrete. 17422_ U-05 Engineer builds a Wall. 17436_ System corrupted: Energy discharge (-52). 17440_ Acquired 5 matter. 17456_ System corrupted: Energy discharge (-38). 17474_ C-30 ARC bursts open, deploying its payload. 17474_ G-50 Soldier unfolds itself. 17474_ L-31 Rogue unfolds itself. 17474_ G-47 Trooper unfolds itself. 17474_ I-25 Savior unfolds itself. 17476_ Lgt. Nuclear Core destroyed. Map ----- +----------------------------------------------------+ | ?????????????????????????????????????????????????? | | ?????????????????????????????????????????????????? | | ?????????????????????????????????????????????????? | | ?????????????????????????????????????????????????? | | ?????????????????????????????????????????????????? | | ?????????????????????????????????????????????????? | | ?????????????????????????????????????????????????? | | ?????????????????????????????????????????????????? | | ?????????????????????????????????????????????????? | | ?????????????????????????????????????????????????? | | ?????????????????????????????????????????????????? | | ?????????????????????????????????????????????????? | | ?????????????????????????????????????????????????? | | ???????????????????????????????Y?????????????????? | | ????????????????????#####????????????????????????? | | ????????????????????#"""#????????????????????????? | | ?????????????????####"T"###??????????????????????? | | ?????????????????# #??????????????????????? | | ?????????????????# """ #??????????????????????? | | ?????????????????# ! """ #??????????????????????? | | ?????????????????# """ #??????????????????????? | | ?????????????????# #??????????????????????? | | ?????????????????# #????? #???????????????? | | ?????????????????# !!! #??? #???????????????? | | ?????????????????# !!! g ## #???????????????? | | ?????????????????# !! il@## #?#?????????????? | | ???#####################g######+## #?????????????? | | ???# %= %g % #?????????????? | | ???# *% #?????????????? | | ???# = [[ +??????????? | | #### ################## ###########??????????? | | # % #???????????# # # ##?????????????????? | | # ###########?## ## ###??????????????????? | | # # ######## ##???????????????????? | | # # # #????????????????????? | | # # """ # #????????????????????? | | ]# # """ # #????????????????????? | | + + """ "# ########????????????????????? | | # # T# ?????????????????????????????? | | =# # "# ??????????????????????????????? | | ####! # ! ! #???????????????????????????????? | | ###########???????????????????????????????? | | #?????????????????????????????????????????? | | #?????????????????????????????????????????? | | ###### #?????????????????????????????????????????? | | #????# #?????????????????????????????????????????? | | #????# #?????????????????????????????????????????? | | ######+#?????????????????????????????????????????? | | # #?????????????????????????????????????????? | | # """ #?????????????????????????????????????????? | +----------------------------------------------------+ Best States ------------- Heat Dissipation 64 Energy Generation 18 Energy Capacity 290 Matter Stores 300 Matter Capacity 450 Sight Range 18 Robot Scan Range 20 Terrain Scan Range 16 Terrain Scan Density 110 Additional Mass Support 6 Armor Coverage 600 Weapon Cycling 15 Evasion (%) 59 Targeting Accuracy 8 Recoil Reduction 4 Particle Charging 15 Defensive Hacking 10 Relay Coupler Types 3 Relay Coupler Value 77 Item Schematics ----------------- Adv. Assault Cannon | -8/Materials | Scanalyzed Datajack | -8/Materials | Hacked Robot Schematics ------------------ None Fabricated ------------ Nothing Alien Tech Used ----------------- None Achievements -------------- Quantum Hacking Quick And Dirty root@ Challenges ------------ None Game ------ Seed LayeredConstructPod Manual? 0 Play Time 02:21:46 Cumulative 53.8 hours Start 2023.11.21 @ 23:28:23 End 2023.11.22 @ 01:52:01 Sessions 1 Manual Loads 0 Difficulty Rogue Special Mode None Game No. 18 Rogue 18 Adventurer 0 Explorer 0 Win Type - Total 0 Types 0/0/0/0/0/0/0/0/0 Lore% 33 Gallery% 49 Achievement% 44 Wizard Run 0 Options --------- ASCII 0 Keyboard 0 Movement Mouse Keybinds 0 Fullscreen 2 Font 18/SmallcapsGlow Map View 76x50 Tactical HUD 1 Map Filters NONE Filters NONE Steam 1 RUN: 2720efe1-e76f-43de-9d81-9d7d79df97a3